[Event "*** Titled Tuesday Blitz"]
[Site "Chess.com"]
[Date "2020.04.07"]
[Round "2"]
[White "floplover"]
[Black "ChesterF"]
[Result "0-1"]
[WhiteElo "2250"]
[BlackElo "2486"]
[TimeControl "180+1"]
[EndTime "13:18:41 PDT"]
[Termination "ChesterF won by resignation"]

1. d4 {[%clk 0:03:00.9]} 1... Nf6 {[%clk 0:02:59.8]} 2. c4 {[%clk 0:03:01]} 2...
e6 {[%clk 0:03:00.3]} 3. Nc3 {[%clk 0:03:01.6]} 3... Bb4 {[%clk 0:03:00.4]} 4.
Qc2 {[%clk 0:03:01.9]} 4... d5 {[%clk 0:02:59.5]} 5. cxd5 {[%clk 0:03:01.4]}
5... exd5 {[%clk 0:02:59.5]} 6. Bg5 {[%clk 0:03:01.4]} 6... h6 {[%clk
0:02:59.7]} 7. Bxf6 {[%clk 0:03:00.3]} 7... Qxf6 {[%clk 0:02:59.8]} 8. a3 {[%clk
0:03:00.6]} 8... Bxc3+ {[%clk 0:02:59.6]} 9. Qxc3 {[%clk 0:03:01.5]} 9... O-O
{[%clk 0:02:58.4]} 10. e3 {[%clk 0:03:01.8]} 10... Bf5 {[%clk 0:02:53.7]} 11.
Ne2 {[%clk 0:02:58.9]} 11... Nd7 {[%clk 0:02:45.6]} 12. Nf4 {[%clk 0:02:52.8]}
12... c6 {[%clk 0:02:41.7]} 13. Bd3 {[%clk 0:02:49.1]} 13... Rfe8 {[%clk
0:02:29.7]} 14. O-O {[%clk 0:02:47.2]} 14... Bxd3 {[%clk 0:02:22.2]} 15. Qxd3
{[%clk 0:02:41.2]} 15... a5 {[%clk 0:02:19.3]} 16. Rfc1 {[%clk 0:02:37.6]} 16...
a4 {[%clk 0:02:13.1]} 17. b3 {[%clk 0:02:35.9]} 17... axb3 {[%clk 0:02:11.3]}
18. Qxb3 {[%clk 0:02:36.8]} 18... Ra7 {[%clk 0:02:08]} 19. a4 {[%clk 0:02:34.1]}
19... Qd6 {[%clk 0:02:03.3]} 20. h3 {[%clk 0:02:29.7]} 20... Rea8 {[%clk
0:01:59.7]} 21. Nd3 {[%clk 0:02:25.1]} 21... b5 {[%clk 0:01:22.1]} 22. Qc3
{[%clk 0:02:03.4]} 22... Rxa4 {[%clk 0:01:06.7]} 23. Rxa4 {[%clk 0:02:00.3]}
23... bxa4 {[%clk 0:01:07.1]} 24. Qxc6 {[%clk 0:01:52]} 24... Qxc6 {[%clk
0:01:07]} 25. Rxc6 {[%clk 0:01:52.9]} 25... a3 {[%clk 0:01:07.2]} 26. Rc1 {[%clk
0:01:52.7]} 26... Nb6 {[%clk 0:00:59.8]} 27. Nb4 {[%clk 0:01:51.8]} 27... Ra4
{[%clk 0:00:53.7]} 28. Rb1 {[%clk 0:01:50.1]} 28... Rxb4 {[%clk 0:00:41.1]} 29.
Rxb4 {[%clk 0:01:47.5]} 29... a2 {[%clk 0:00:41.6]} 30. Rxb6 {[%clk 0:01:48]}
30... a1=Q+ {[%clk 0:00:41.7]} 31. Kh2 {[%clk 0:01:48.7]} 31... Qc1 {[%clk
0:00:18.6]} 32. Rb5 {[%clk 0:01:40.6]} 32... Qc4 {[%clk 0:00:17.5]} 33. Rc5
{[%clk 0:01:38.8]} 33... Qa2 {[%clk 0:00:17.8]} 34. Kg3 {[%clk 0:01:38.1]} 34...
g6 {[%clk 0:00:18.2]} 35. Rb5 {[%clk 0:01:31.8]} 35... Kg7 {[%clk 0:00:18.4]}
36. Rc5 {[%clk 0:01:31.7]} 36... g5 {[%clk 0:00:18.7]} 37. Rb5 {[%clk 0:01:31]}
37... h5 {[%clk 0:00:19]} 38. Rc5 {[%clk 0:01:23.3]} 38... f6 {[%clk 0:00:18.4]}
39. Kf3 {[%clk 0:01:18.4]} 39... Kg6 {[%clk 0:00:18.6]} 40. g4 {[%clk
0:01:15.5]} 40... h4 {[%clk 0:00:17.7]} 41. Kg2 {[%clk 0:01:12.8]} 41... Qb1
{[%clk 0:00:16.8]} 42. Ra5 {[%clk 0:01:06.2]} 42... Qe4+ {[%clk 0:00:17.1]} 43.
Kg1 {[%clk 0:01:03.7]} 43... Qf3 {[%clk 0:00:17.3]} 44. Rc5 {[%clk 0:01:01.1]}
44... Qxh3 {[%clk 0:00:17.5]} 45. Rxd5 {[%clk 0:01:01.4]} 45... Qxg4+ {[%clk
0:00:18.1]} 46. Kh2 {[%clk 0:01:00.8]} 46... h3 {[%clk 0:00:18.6]} 0-1

[Event "*** Titled Tuesday Blitz"]
[Site "Chess.com"]
[Date "2020.04.07"]
[Round "2"]
[White "ElHelvetico"]
[Black "Sebastian"]
[Result "0-1"]
[WhiteElo "2609"]
[BlackElo "3016"]
[TimeControl "180+1"]
[EndTime "13:18:43 PDT"]
[Termination "Sebastian won on time"]

1. e4 {[%clk 0:03:00.9]} 1... c5 {[%clk 0:02:59]} 2. Nf3 {[%clk 0:03:00.6]} 2...
d6 {[%clk 0:02:58.2]} 3. d4 {[%clk 0:03:01.2]} 3... cxd4 {[%clk 0:02:58.3]} 4.
Nxd4 {[%clk 0:03:02.1]} 4... Nf6 {[%clk 0:02:58.5]} 5. Nc3 {[%clk 0:03:02.8]}
5... a6 {[%clk 0:02:58.7]} 6. Be3 {[%clk 0:03:03.4]} 6... e5 {[%clk 0:02:57.8]}
7. Nb3 {[%clk 0:03:04]} 7... Be6 {[%clk 0:02:57.6]} 8. h3 {[%clk 0:03:02.9]}
8... Be7 {[%clk 0:02:54.5]} 9. f4 {[%clk 0:03:02.2]} 9... Nc6 {[%clk 0:02:28.2]}
10. f5 {[%clk 0:02:54.7]} 10... Bxb3 {[%clk 0:02:27.5]} 11. axb3 {[%clk
0:02:55.4]} 11... Nb4 {[%clk 0:02:22.1]} 12. g3 {[%clk 0:02:00.3]} 12... d5
{[%clk 0:02:03.9]} 13. exd5 {[%clk 0:01:51.7]} 13... Nbxd5 {[%clk 0:02:01.2]}
14. Qd2 {[%clk 0:01:19.3]} 14... O-O {[%clk 0:01:16.3]} 15. Bg2 {[%clk
0:01:08.5]} 15... Nxe3 {[%clk 0:01:15.7]} 16. Qxe3 {[%clk 0:01:08.3]} 16... Qc7
{[%clk 0:01:15.9]} 17. O-O-O {[%clk 0:00:57.1]} 17... Rac8 {[%clk 0:01:16.3]}
18. Rhe1 {[%clk 0:00:48.5]} 18... e4 {[%clk 0:00:26.4]} 19. Bxe4 {[%clk
0:00:28.8]} 19... Bb4 {[%clk 0:00:23.9]} 20. Qf4 {[%clk 0:00:18.2]} 20... Qa5
{[%clk 0:00:16.2]} 21. Re3 {[%clk 0:00:03.5]} 21... Qa1+ {[%clk 0:00:12.3]} 22.
Nb1 {[%clk 0:00:03.2]} 22... Rfd8 {[%clk 0:00:10.7]} 23. Rxd8+ {[%clk
0:00:02.2]} 23... Rxd8 {[%clk 0:00:11.6]} 24. Bd3 {[%clk 0:00:01.9]} 24... Qa5
{[%clk 0:00:09]} 0-1

[Event "*** Titled Tuesday Blitz"]
[Site "Chess.com"]
[Date "2020.04.07"]
[Round "2"]
[White "Faqade"]
[Black "Antipov_Mikhail_Al"]
[Result "1-0"]
[WhiteElo "2616"]
[BlackElo "2947"]
[TimeControl "180+1"]
[EndTime "13:18:44 PDT"]
[Termination "Faqade won by resignation"]

1. e4 {[%clk 0:03:00.9]} 1... e5 {[%clk 0:02:59.7]} 2. Nf3 {[%clk 0:03:01.4]}
2... Nc6 {[%clk 0:02:59.8]} 3. Nc3 {[%clk 0:03:02]} 3... Nf6 {[%clk 0:02:59.7]}
4. d4 {[%clk 0:03:01.9]} 4... exd4 {[%clk 0:03:00.6]} 5. Nxd4 {[%clk 0:03:02.5]}
5... Bb4 {[%clk 0:03:01.2]} 6. Nxc6 {[%clk 0:02:59.7]} 6... bxc6 {[%clk
0:03:02.1]} 7. Bd3 {[%clk 0:03:00]} 7... d5 {[%clk 0:03:02.3]} 8. exd5 {[%clk
0:02:59.2]} 8... cxd5 {[%clk 0:03:03.2]} 9. O-O {[%clk 0:02:56.1]} 9... O-O
{[%clk 0:03:03]} 10. Qf3 {[%clk 0:02:56.5]} 10... c6 {[%clk 0:03:02.8]} 11. Bg5
{[%clk 0:02:56.9]} 11... Be7 {[%clk 0:03:02.6]} 12. Rae1 {[%clk 0:02:54.1]}
12... h6 {[%clk 0:02:57.8]} 13. Bf4 {[%clk 0:02:52.2]} 13... Nd7 {[%clk
0:02:56.8]} 14. Nd1 {[%clk 0:02:49]} 14... Nc5 {[%clk 0:02:38.7]} 15. Be5 {[%clk
0:02:19.6]} 15... Re8 {[%clk 0:02:12.4]} 16. Qg3 {[%clk 0:02:01.3]} 16... Ne6
{[%clk 0:01:37]} 17. Bf5 {[%clk 0:01:40.4]} 17... Bf8 {[%clk 0:01:32.4]} 18. Ne3
{[%clk 0:01:20.7]} 18... Ng5 {[%clk 0:01:13.7]} 19. Bc7 {[%clk 0:00:52.6]} 19...
Qf6 {[%clk 0:01:13.2]} 20. Ng4 {[%clk 0:00:45.3]} 20... Qxf5 {[%clk 0:01:04.7]}
21. Rxe8 {[%clk 0:00:45.6]} 21... Qd7 {[%clk 0:00:26.7]} 22. Rfe1 {[%clk
0:00:41.5]} 22... h5 {[%clk 0:00:23]} 23. Bd6 {[%clk 0:00:29.7]} 23... Qxg4
{[%clk 0:00:07.8]} 24. Rxf8+ {[%clk 0:00:28.4]} 24... Kh7 {[%clk 0:00:07.2]} 25.
Qxg4 {[%clk 0:00:26.9]} 25... hxg4 {[%clk 0:00:07.3]} 26. Ree8 {[%clk 0:00:27]}
26... Ne4 {[%clk 0:00:07.2]} 1-0

[Event "*** Titled Tuesday Blitz"]
[Site "Chess.com"]
[Date "2020.04.07"]
[Round "2"]
[White "NIGWAPO"]
[Black "zivicd"]
[Result "1-0"]
[WhiteElo "2583"]
[BlackElo "2305"]
[TimeControl "180+1"]
[EndTime "13:18:44 PDT"]
[Termination "NIGWAPO won on time"]

1. g3 {[%clk 0:03:00.9]} 1... g6 {[%clk 0:02:59.3]} 2. h4 {[%clk 0:03:00.7]}
2... h5 {[%clk 0:02:56.3]} 3. Nh3 {[%clk 0:03:00.4]} 3... Bg7 {[%clk 0:02:56.4]}
4. Bg2 {[%clk 0:03:00.9]} 4... Nf6 {[%clk 0:02:56.5]} 5. O-O {[%clk 0:03:01.5]}
5... O-O {[%clk 0:02:55.7]} 6. d3 {[%clk 0:03:01.1]} 6... e5 {[%clk 0:02:55.7]}
7. c4 {[%clk 0:03:01.6]} 7... d6 {[%clk 0:02:54.9]} 8. Nc3 {[%clk 0:03:02.1]}
8... Nc6 {[%clk 0:02:54.7]} 9. Ng5 {[%clk 0:03:02.2]} 9... Bg4 {[%clk
0:02:47.3]} 10. Rb1 {[%clk 0:03:02.4]} 10... a5 {[%clk 0:02:45.9]} 11. a3 {[%clk
0:03:02.3]} 11... Qc8 {[%clk 0:02:41.1]} 12. b4 {[%clk 0:03:01.9]} 12... axb4
{[%clk 0:02:40.5]} 13. axb4 {[%clk 0:03:02.8]} 13... Nd4 {[%clk 0:02:37.3]} 14.
Be3 {[%clk 0:03:02.1]} 14... Ra3 {[%clk 0:02:32.9]} 15. Bxd4 {[%clk 0:03:00]}
15... exd4 {[%clk 0:02:32.4]} 16. Nb5 {[%clk 0:02:59.9]} 16... Ra2 {[%clk
0:02:28.1]} 17. Nxd4 {[%clk 0:02:59.8]} 17... Nh7 {[%clk 0:02:14.5]} 18. Ndf3
{[%clk 0:02:56.6]} 18... Re8 {[%clk 0:02:12.1]} 19. Nxh7 {[%clk 0:02:54.4]}
19... Kxh7 {[%clk 0:02:08.8]} 20. e4 {[%clk 0:02:53.9]} 20... Kg8 {[%clk
0:02:01.1]} 21. Qb3 {[%clk 0:02:53.1]} 21... Qa8 {[%clk 0:01:55.2]} 22. Ng5
{[%clk 0:02:47.7]} 22... Qa3 {[%clk 0:01:52.2]} 23. c5 {[%clk 0:02:43.4]} 23...
Qxb3 {[%clk 0:01:51.1]} 24. Rxb3 {[%clk 0:02:43]} 24... b6 {[%clk 0:01:30.2]}
25. Bf3 {[%clk 0:02:37.2]} 25... Bd7 {[%clk 0:01:27.1]} 26. cxd6 {[%clk
0:02:29.8]} 26... cxd6 {[%clk 0:01:26.7]} 27. Bg2 {[%clk 0:02:16]} 27... Ba4
{[%clk 0:01:26.3]} 28. Rbb1 {[%clk 0:02:13.9]} 28... Bc2 {[%clk 0:01:26.2]} 29.
Rbc1 {[%clk 0:02:13]} 29... Bxd3 {[%clk 0:01:26]} 30. Rfd1 {[%clk 0:02:13.1]}
30... Be2 {[%clk 0:01:13.9]} 31. Rxd6 {[%clk 0:02:10.5]} 31... Bb5 {[%clk
0:00:56.4]} 32. f4 {[%clk 0:02:07.4]} 32... Ba4 {[%clk 0:00:41.6]} 33. e5 {[%clk
0:02:07.1]} 33... Bb3 {[%clk 0:00:39]} 34. Rc3 {[%clk 0:02:04.7]} 34... Ba4
{[%clk 0:00:29.6]} 35. Bd5 {[%clk 0:02:02.3]} 35... Ra1+ {[%clk 0:00:29.5]} 36.
Kf2 {[%clk 0:02:01.7]} 36... Rf8 {[%clk 0:00:15.8]} 37. Nxf7 {[%clk 0:02:00.7]}
37... Kh7 {[%clk 0:00:12.8]} 38. Ng5+ {[%clk 0:01:59.8]} 38... Kh6 {[%clk
0:00:12.4]} 39. Kg2 {[%clk 0:01:50]} 39... Rd1 {[%clk 0:00:10.4]} 40. Ne6 {[%clk
0:01:31.3]} 40... Rb8 {[%clk 0:00:07.7]} 41. Nxg7 {[%clk 0:01:29.8]} 41... Kxg7
{[%clk 0:00:07.1]} 42. Rc7+ {[%clk 0:01:29.8]} 42... Kh6 {[%clk 0:00:07]} 43.
Be4 {[%clk 0:01:28.9]} 43... Rxd6 {[%clk 0:00:05.2]} 44. exd6 {[%clk 0:01:28.6]}
44... Rd8 {[%clk 0:00:05.3]} 45. Ra7 {[%clk 0:01:28.2]} 45... Bb5 {[%clk
0:00:04.2]} 46. d7 {[%clk 0:01:26.2]} 46... Rxd7 {[%clk 0:00:04.1]} 47. Rxd7
{[%clk 0:01:26.2]} 47... Bxd7 {[%clk 0:00:04.1]} 48. Kf3 {[%clk 0:01:26.7]}
48... Kg7 {[%clk 0:00:04.1]} 49. Ke3 {[%clk 0:01:26.9]} 49... Kf6 {[%clk
0:00:04.1]} 50. Kd4 {[%clk 0:01:27.4]} 50... Be8 {[%clk 0:00:01.9]} 51. Kd5
{[%clk 0:01:26.9]} 1-0

[Event "*** Titled Tuesday Blitz"]
[Site "Chess.com"]
[Date "2020.04.07"]
[Round "2"]
[White "TwentyHoursADay"]
[Black "fmshawnrl123"]
[Result "0-1"]
[WhiteElo "2430"]
[BlackElo "2724"]
[TimeControl "180+1"]
[EndTime "13:18:45 PDT"]
[Termination "fmshawnrl123 won by resignation"]

1. c4 {[%clk 0:03:00]} 1... Nf6 {[%clk 0:02:59.5]} 2. Nc3 {[%clk 0:02:59.8]}
2... e6 {[%clk 0:03:00.1]} 3. e4 {[%clk 0:02:59.5]} 3... d5 {[%clk 0:03:00.3]}
4. e5 {[%clk 0:02:59.8]} 4... d4 {[%clk 0:03:00.1]} 5. exf6 {[%clk 0:03:00.2]}
5... dxc3 {[%clk 0:03:01]} 6. bxc3 {[%clk 0:03:00.6]} 6... gxf6 {[%clk
0:02:58.3]} 7. Nf3 {[%clk 0:02:56.3]} 7... b6 {[%clk 0:02:56.2]} 8. d4 {[%clk
0:02:54.9]} 8... Bb7 {[%clk 0:02:52.8]} 9. g3 {[%clk 0:02:54]} 9... Nd7 {[%clk
0:02:49.4]} 10. Bg2 {[%clk 0:02:52.3]} 10... Bd6 {[%clk 0:02:41.6]} 11. Rb1
{[%clk 0:02:48.4]} 11... Be4 {[%clk 0:02:38.5]} 12. Rb3 {[%clk 0:02:42.6]} 12...
h5 {[%clk 0:02:29.4]} 13. Qe2 {[%clk 0:02:36]} 13... Bb7 {[%clk 0:02:18.8]} 14.
c5 {[%clk 0:02:32.9]} 14... Be7 {[%clk 0:02:19.3]} 15. O-O {[%clk 0:02:10.8]}
15... a5 {[%clk 0:02:12]} 16. c4 {[%clk 0:02:07.4]} 16... a4 {[%clk 0:02:10.8]}
17. Rb1 {[%clk 0:02:06.9]} 17... Rb8 {[%clk 0:01:50.8]} 18. c6 {[%clk
0:01:56.9]} 18... Bxc6 {[%clk 0:01:49.8]} 19. d5 {[%clk 0:01:57.5]} 19... exd5
{[%clk 0:01:40.9]} 20. Nd4 {[%clk 0:01:56.7]} 20... Bb7 {[%clk 0:01:41.4]} 21.
Nf5 {[%clk 0:01:39.3]} 21... Ne5 {[%clk 0:01:39.1]} 22. f4 {[%clk 0:01:34.1]}
22... Ng6 {[%clk 0:01:25.8]} 23. Re1 {[%clk 0:01:28.5]} 23... d4 {[%clk
0:00:49.9]} 24. Ba3 {[%clk 0:01:20.1]} 24... c5 {[%clk 0:00:45.5]} 25. Nxe7
{[%clk 0:01:01.3]} 25... Nxe7 {[%clk 0:00:44.2]} 26. Rxb6 {[%clk 0:01:00.8]}
26... d3 {[%clk 0:00:37]} 27. Qxe7+ {[%clk 0:00:51.7]} 27... Qxe7 {[%clk
0:00:37.9]} 28. Rxe7+ {[%clk 0:00:52]} 28... Kxe7 {[%clk 0:00:38.5]} 29. Bxc5+
{[%clk 0:00:52.2]} 29... Kd7 {[%clk 0:00:31.4]} 30. Rxb7+ {[%clk 0:00:45.3]}
30... Rxb7 {[%clk 0:00:31.1]} 31. Bxb7 {[%clk 0:00:46.1]} 31... d2 {[%clk
0:00:31.2]} 32. Bf3 {[%clk 0:00:45.9]} 32... Re8 {[%clk 0:00:29.2]} 33. Bxh5
{[%clk 0:00:17.7]} 33... Re1+ {[%clk 0:00:28.7]} 34. Kf2 {[%clk 0:00:18.4]}
34... d1=Q {[%clk 0:00:29.6]} 35. Bxd1 {[%clk 0:00:18.3]} 35... Rxd1 {[%clk
0:00:30.5]} 36. a3 {[%clk 0:00:17.3]} 36... Rc1 {[%clk 0:00:29.8]} 37. Kf3
{[%clk 0:00:12.1]} 37... Rxc4 {[%clk 0:00:29]} 38. Bb4 {[%clk 0:00:12.8]} 38...
Rxb4 {[%clk 0:00:28.8]} 0-1

[Event "*** Titled Tuesday Blitz"]
[Site "Chess.com"]
[Date "2020.04.07"]
[Round "2"]
[White "BeanScreen"]
[Black "Hikaru"]
[Result "0-1"]
[WhiteElo "2628"]
[BlackElo "3264"]
[TimeControl "180+1"]
[EndTime "13:18:46 PDT"]
[Termination "Hikaru won by resignation"]

1. e4 {[%clk 0:03:00.8]} 1... e6 {[%clk 0:02:57.9]} 2. d4 {[%clk 0:03:00.6]}
2... d5 {[%clk 0:02:58.3]} 3. Nc3 {[%clk 0:03:01.5]} 3... Bb4 {[%clk 0:02:55]}
4. exd5 {[%clk 0:03:01.9]} 4... exd5 {[%clk 0:02:54.5]} 5. Bd3 {[%clk
0:03:02.4]} 5... c6 {[%clk 0:02:54.5]} 6. Nf3 {[%clk 0:03:02.3]} 6... Ne7 {[%clk
0:02:54]} 7. O-O {[%clk 0:03:02.8]} 7... Bd6 {[%clk 0:02:53.9]} 8. Re1 {[%clk
0:03:02]} 8... O-O {[%clk 0:02:51.1]} 9. Bg5 {[%clk 0:02:53.4]} 9... f6 {[%clk
0:02:48.6]} 10. Bh4 {[%clk 0:02:53.1]} 10... Nf5 {[%clk 0:02:47.3]} 11. Bg3
{[%clk 0:02:48.2]} 11... Nxg3 {[%clk 0:02:46.6]} 12. hxg3 {[%clk 0:02:49.1]}
12... Bg4 {[%clk 0:02:45.4]} 13. Be2 {[%clk 0:02:31.7]} 13... Bd7 {[%clk
0:02:41]} 14. Nh4 {[%clk 0:02:28.3]} 14... g5 {[%clk 0:02:30]} 15. Nf3 {[%clk
0:02:17.7]} 15... g4 {[%clk 0:02:28.8]} 16. Nh2 {[%clk 0:02:03.9]} 16... f5
{[%clk 0:02:28.5]} 17. Bd3 {[%clk 0:01:58.5]} 17... Qf6 {[%clk 0:02:27.3]} 18.
Ne2 {[%clk 0:01:45.9]} 18... Be6 {[%clk 0:02:18.8]} 19. c3 {[%clk 0:01:45.4]}
19... Nd7 {[%clk 0:02:18.4]} 20. Nf4 {[%clk 0:01:43.6]} 20... Bxf4 {[%clk
0:02:08.5]} 21. gxf4 {[%clk 0:01:43.6]} 21... h5 {[%clk 0:02:09.2]} 22. Qd2
{[%clk 0:01:32.3]} 22... h4 {[%clk 0:02:05.1]} 23. Re2 {[%clk 0:01:32]} 23...
Rf7 {[%clk 0:01:57.5]} 24. Rae1 {[%clk 0:01:31.6]} 24... Nf8 {[%clk 0:01:54.7]}
25. Re5 {[%clk 0:01:26.4]} 25... Bd7 {[%clk 0:01:54]} 26. Qc2 {[%clk 0:01:23.4]}
26... Kh8 {[%clk 0:01:36.4]} 27. Nf1 {[%clk 0:01:14.6]} 27... Ng6 {[%clk
0:01:32.4]} 28. g3 {[%clk 0:01:05.7]} 28... Nxe5 {[%clk 0:01:29.7]} 29. dxe5
{[%clk 0:01:04.8]} 29... Qh6 {[%clk 0:01:29.7]} 30. Ne3 {[%clk 0:00:56.4]} 30...
Raf8 {[%clk 0:01:29.3]} 31. c4 {[%clk 0:00:53.6]} 31... hxg3 {[%clk 0:01:16.5]}
32. fxg3 {[%clk 0:00:52.9]} 32... Rh7 {[%clk 0:01:16.5]} 33. Bf1 {[%clk
0:00:45.1]} 33... d4 {[%clk 0:01:14.1]} 34. Bg2 {[%clk 0:00:17.7]} 34... dxe3
{[%clk 0:01:13.2]} 35. Rxe3 {[%clk 0:00:18.6]} 35... Be6 {[%clk 0:01:13.1]} 36.
Qd2 {[%clk 0:00:16.9]} 36... Rd7 {[%clk 0:01:10.3]} 37. Rd3 {[%clk 0:00:13.2]}
37... Rxd3 {[%clk 0:00:56.7]} 38. Qxd3 {[%clk 0:00:14.1]} 38... Re8 {[%clk
0:00:56.8]} 0-1

[Event "*** Titled Tuesday Blitz"]
[Site "Chess.com"]
[Date "2020.04.07"]
[Round "2"]
[White "shanemelaughcm"]
[Black "ChainsOfFantasia"]
[Result "1-0"]
[WhiteElo "2280"]
[BlackElo "2474"]
[TimeControl "180+1"]
[EndTime "13:18:46 PDT"]
[Termination "shanemelaughcm won on time"]

1. e4 {[%clk 0:03:00.9]} 1... e6 {[%clk 0:02:59.8]} 2. d4 {[%clk 0:02:57.9]}
2... d5 {[%clk 0:03:00.7]} 3. Nd2 {[%clk 0:02:57.6]} 3... c5 {[%clk 0:03:00.1]}
4. dxc5 {[%clk 0:02:56.8]} 4... Bxc5 {[%clk 0:02:53.4]} 5. exd5 {[%clk
0:02:56.2]} 5... Qxd5 {[%clk 0:02:51.7]} 6. Ngf3 {[%clk 0:02:55.4]} 6... Nf6
{[%clk 0:02:50.5]} 7. Bc4 {[%clk 0:02:54.8]} 7... Qc6 {[%clk 0:02:50.9]} 8. O-O
{[%clk 0:02:53.7]} 8... O-O {[%clk 0:02:49.3]} 9. c3 {[%clk 0:02:53.3]} 9... a6
{[%clk 0:02:48.9]} 10. Qe2 {[%clk 0:02:51.3]} 10... b5 {[%clk 0:02:48]} 11. Bd3
{[%clk 0:02:50.7]} 11... Bb7 {[%clk 0:02:48]} 12. Re1 {[%clk 0:02:50.3]} 12...
Nbd7 {[%clk 0:02:47.8]} 13. Ne4 {[%clk 0:02:49.3]} 13... Rad8 {[%clk 0:02:39.6]}
14. Bg5 {[%clk 0:02:46.3]} 14... Be7 {[%clk 0:02:34.3]} 15. Rad1 {[%clk
0:02:27.3]} 15... h6 {[%clk 0:02:22.4]} 16. Bh4 {[%clk 0:01:54.6]} 16... Rfe8
{[%clk 0:02:08.4]} 17. Bb1 {[%clk 0:01:52]} 17... Nxe4 {[%clk 0:01:52.9]} 18.
Bxe4 {[%clk 0:01:49.6]} 18... Qxe4 {[%clk 0:01:49.4]} 19. Qxe4 {[%clk 0:01:49]}
19... Bxe4 {[%clk 0:01:50.3]} 20. Rxe4 {[%clk 0:01:36.3]} 20... Bxh4 {[%clk
0:01:43.8]} 21. Rxh4 {[%clk 0:01:33.8]} 21... e5 {[%clk 0:01:41.3]} 22. Re4
{[%clk 0:01:15.1]} 22... f5 {[%clk 0:01:29.1]} 23. Ree1 {[%clk 0:01:15]} 23...
Kf7 {[%clk 0:01:27.1]} 24. Kf1 {[%clk 0:01:12.4]} 24... Kf6 {[%clk 0:01:26.7]}
25. Rd6+ {[%clk 0:01:07.4]} 25... Re6 {[%clk 0:01:26.7]} 26. Red1 {[%clk
0:01:06.6]} 26... Ke7 {[%clk 0:01:19.8]} 27. R6d5 {[%clk 0:00:57.8]} 27... g5
{[%clk 0:01:08.2]} 28. Re1 {[%clk 0:00:48.3]} 28... Rd6 {[%clk 0:00:55.2]} 29.
Red1 {[%clk 0:00:24.3]} 1-0

[Event "*** Titled Tuesday Blitz"]
[Site "Chess.com"]
[Date "2020.04.07"]
[Round "2"]
[White "SahajGrover"]
[Black "Martins-BR"]
[Result "1-0"]
[WhiteElo "2656"]
[BlackElo "2288"]
[TimeControl "180+1"]
[EndTime "13:18:49 PDT"]
[Termination "SahajGrover won by resignation"]

1. e4 {[%clk 0:03:00.9]} 1... c5 {[%clk 0:02:59.3]} 2. Nf3 {[%clk 0:03:01.1]}
2... e6 {[%clk 0:02:59.4]} 3. g3 {[%clk 0:02:59.6]} 3... Nc6 {[%clk 0:02:58.1]}
4. Bg2 {[%clk 0:02:58]} 4... d5 {[%clk 0:02:56.6]} 5. exd5 {[%clk 0:02:57.9]}
5... exd5 {[%clk 0:02:55.7]} 6. O-O {[%clk 0:02:58.5]} 6... Bd6 {[%clk
0:02:55.2]} 7. d4 {[%clk 0:02:58]} 7... c4 {[%clk 0:02:53.2]} 8. b3 {[%clk
0:02:55.9]} 8... cxb3 {[%clk 0:02:49.8]} 9. axb3 {[%clk 0:02:56.8]} 9... Nge7
{[%clk 0:02:49.3]} 10. c4 {[%clk 0:02:45.8]} 10... O-O {[%clk 0:02:44.8]} 11.
Nc3 {[%clk 0:02:37.2]} 11... Bb4 {[%clk 0:02:09]} 12. Na2 {[%clk 0:02:15.5]}
12... Bd6 {[%clk 0:01:54]} 13. c5 {[%clk 0:01:55.4]} 13... Bc7 {[%clk
0:01:51.8]} 14. b4 {[%clk 0:01:54.5]} 14... a6 {[%clk 0:01:51.8]} 15. Qb3 {[%clk
0:01:53.9]} 15... h6 {[%clk 0:01:46.4]} 16. Nc3 {[%clk 0:01:52.5]} 16... Be6
{[%clk 0:01:45.2]} 17. Re1 {[%clk 0:01:42.4]} 17... Nf5 {[%clk 0:01:40.8]} 18.
Be3 {[%clk 0:01:41]} 18... Qd7 {[%clk 0:01:30.4]} 19. Rad1 {[%clk 0:01:29.8]}
19... Rad8 {[%clk 0:01:26.2]} 20. Ne5 {[%clk 0:01:29.8]} 20... Bxe5 {[%clk
0:01:17.2]} 21. dxe5 {[%clk 0:01:28.3]} 21... d4 {[%clk 0:01:08.7]} 22. Qb1
{[%clk 0:01:10.5]} 22... Nxe5 {[%clk 0:01:07.3]} 23. Bxd4 {[%clk 0:00:51.9]}
23... Nxd4 {[%clk 0:01:02.9]} 24. Rxe5 {[%clk 0:00:52]} 24... Qc7 {[%clk
0:00:54.9]} 25. Ree1 {[%clk 0:00:48.2]} 25... Nc6 {[%clk 0:00:49.3]} 26. Bd5
{[%clk 0:00:36.8]} 26... Rfe8 {[%clk 0:00:36.3]} 27. Bxe6 {[%clk 0:00:33.2]}
27... Rxd1 {[%clk 0:00:33.8]} 28. Bxf7+ {[%clk 0:00:31]} 28... Qxf7 {[%clk
0:00:34.7]} 29. Rxd1 {[%clk 0:00:28.5]} 29... Rf8 {[%clk 0:00:34.5]} 30. Ne4
{[%clk 0:00:25.5]} 30... Qf3 {[%clk 0:00:32.6]} 31. Re1 {[%clk 0:00:20.4]} 31...
Nd4 {[%clk 0:00:31.6]} 32. Qd1 {[%clk 0:00:19]} 32... Qc3 {[%clk 0:00:25.9]} 33.
Nxc3 {[%clk 0:00:18.1]} 1-0